fUST/lending_fUST_20250617
["ID","MTS","AMOUNT","RATE_DAILY","PERIOD"]
[366245072,1750162241691,-416.11999583,0.00024109,6]
[366245074,1750162241701,-2520.39,0.00024109,6]
[366245075,1750162241711,-968.8,0.00024109,6]
[366245077,1750162241720,-460.0,0.00024109,6]
[366245079,1750162241730,-2120.41,0.00024109,6]
[366245081,1750162241740,-460.0,0.00024109,6]
[366245083,1750162241749,-498.81,0.00024109,6]
[366245085,1750162241758,-460.0,0.00024109,6]
[366245086,1750162241768,-859.82,0.00024109,6]
[366245088,1750162241778,-460.0,0.00024109,6]
[366245090,1750162241793,-411.93621007,0.00024109,2]
[366245091,1750162241802,-460.0,0.00024109,6]
[366245092,1750162241812,-460.0,0.00024109,6]
[366245094,1750162241821,-460.0,0.00024109,6]
[366245095,1750162241831,-575.77,0.00024109,6]
[366245096,1750162241840,-442.52273543,0.00024109,6]
[366245097,1750162241850,-1599.45,0.00024109,6]
[366245098,1750162241860,-483.03,0.00024109,6]
[366245099,1750162241870,-460.0,0.00024109,6]
[366245100,1750162241881,-3948.38,0.00024109,6]
[366245101,1750162241891,-151.0,0.00024109,7]
[366245102,1750162241900,-460.0,0.00024109,6]
[366245103,1750162241910,-460.0,0.00024109,6]
[366245104,1750162241920,-435.79006434,0.00024109,6]
[366245105,1750162241930,-151.0,0.00024109,7]
[366245106,1750162241939,-460.0,0.00024109,6]
[366245107,1750162241949,-460.0,0.00024109,6]
[366245108,1750162241959,-460.0,0.00024109,6]
[366245109,1750162241969,-151.0,0.00024109,7]
[366245110,1750162241978,-460.0,0.00024109,6]
[366245111,1750162241988,-462.25295053,0.00024109,6]
[366245112,1750162241997,-460.0,0.00024109,6]
[366245113,1750162242007,-460.0,0.00024109,6]
[366245114,1750162242017,-519.72652483,0.00024109,6]
[366245115,1750162242026,-1282.67,0.00024109,6]
[366245116,1750162242035,-159.481499,0.00024109,7]
[366245117,1750162242045,-460.0,0.00024109,6]
[366245118,1750162242054,-460.0,0.00024109,6]
[366245119,1750162242064,-436.56957506,0.00024109,6]
[366245120,1750162242073,-460.0,0.00024109,6]
[366245121,1750162242083,-151.0,0.00024109,7]
[366245122,1750162242092,-460.0,0.00024109,6]
[366245123,1750162242102,-460.0,0.00024109,6]
[366245124,1750162242111,-185.465959,0.00024109,7]
[366245125,1750162242120,-621.08,0.00024109,6]
[366245126,1750162242130,-460.0,0.00024109,6]
[366245127,1750162242139,-460.0,0.00024109,6]
[366245128,1750162242148,-404.19598948,0.00024109,6]
[366245129,1750162242158,-460.0,0.00024109,6]
[366245130,1750162242167,-2433.37,0.00024109,6]
[366245131,1750162242177,-624.56,0.00024109,6]
[366245132,1750162242186,-460.0,0.00024109,6]
[366245133,1750162242195,-151.0,0.00024109,7]
[366245134,1750162242205,-483.59,0.00024109,6]
[366245135,1750162242214,-460.0,0.00024109,6]
[366245136,1750162242224,-445.38534391,0.00024109,6]
[366245137,1750162242234,-477.94,0.00024109,6]
[366245138,1750162242243,-460.0,0.00024109,6]
[366245139,1750162242253,-151.0,0.00024109,7]
[366245140,1750162242367,-460.0,0.00024109,6]
[366245141,1750162242378,-500.0,0.00024109,6]
[366245142,1750162242388,-500.0,0.00024109,6]
[366245143,1750162242397,-500.0,0.00024109,6]
[366245144,1750162242407,-500.0,0.00024109,6]
[366245145,1750162242417,-441.80511731,0.00024109,6]
[366245146,1750162242426,-500.0,0.00024109,6]
[366245147,1750162242436,-500.0,0.00024109,6]
[366245148,1750162242446,-500.0,0.00024109,6]
[366245149,1750162242456,-460.0,0.00024109,6]
[366245150,1750162242465,-509.19559322,0.00024109,6]
[366245151,1750162242474,-460.0,0.00024109,6]
[366245152,1750162242485,-460.0,0.00024109,6]
[366245153,1750162242495,-2618.58,0.00024109,6]
[366245154,1750162242505,-439.28915816,0.00024109,6]
[366245155,1750162242517,-460.0,0.00024109,6]
[366245156,1750162242527,-460.0,0.00024109,6]
[366245157,1750162242537,-460.0,0.00024109,6]
[366245158,1750162242546,-281.25366821,0.00024109,6]
[366245159,1750162242556,-432.74643172,0.00024109,6]
[366245160,1750162242566,-663.84,0.00024109,6]
[366245161,1750162242575,-434.84455924,0.00024109,6]
[366245162,1750162242584,-460.0,0.00024109,6]
[366245163,1750162242594,-464.51351703,0.00024109,6]
[366245164,1750162242603,-460.0,0.00024109,6]
[366245165,1750162242613,-460.0,0.00024109,6]
[366245166,1750162242622,-460.0,0.00024109,6]
[366245167,1750162242632,-290.40767549,0.00024109,6]
[366245168,1750162242641,-460.0,0.00024109,6]
[366245169,1750162242651,-460.0,0.00024109,6]
[366245170,1750162242660,-460.0,0.00024109,6]
[366245171,1750162242670,-460.0,0.00024109,6]
[366245172,1750162242680,-460.0,0.00024109,6]
[366245173,1750162242690,-460.0,0.00024109,6]
[366245174,1750162242700,-460.0,0.00024109,6]
[366245175,1750162242709,-460.0,0.00024109,6]
[366245176,1750162242719,-398.07019362,0.00024109,6]
[366245177,1750162242730,-433.96070124,0.00024109,6]
[366245178,1750162242739,-460.0,0.00024109,6]
[366245179,1750162242750,-460.0,0.00024109,6]
[366245180,1750162242760,-460.0,0.00024109,6]
[366245181,1750162242770,-433.78074278,0.00024109,6]
[366245182,1750162242780,-460.0,0.00024109,6]
[366245183,1750162242793,-460.0,0.00024109,6]
[366245184,1750162242803,-436.50703535,0.00024109,6]
[366245185,1750162242812,-460.0,0.00024109,6]
[366245186,1750162242824,-873.19,0.00024109,6]
[366245187,1750162242833,-460.0,0.00024109,6]
[366245188,1750162242843,-508.93316296,0.00024109,6]
[366245189,1750162242853,-4182.17,0.00024109,6]
[366245190,1750162242864,-460.0,0.00024109,6]
[366245191,1750162242875,-460.0,0.00024109,6]
[366245192,1750162242885,-151.0,0.00024109,7]
[366245193,1750162242895,-309.01305502,0.00024109,6]
[366245194,1750162242904,-442.27741444,0.00024109,6]
[366245195,1750162242914,-442.30951346,0.00024109,6]
[366245196,1750162242924,-538.17791054,0.00024109,6]
[366245197,1750162242934,-5951.05,0.00024109,6]
[366245198,1750162242947,-443.08934055,0.00024109,6]
[366245200,1750162242956,-257.59770312,0.00024109,6]
[366245201,1750162242965,-460.0,0.00024109,6]
[366245203,1750162242974,-460.0,0.00024109,6]
[366245205,1750162242984,-460.0,0.00024109,6]
[366245207,1750162242994,-151.0,0.00024109,7]
[366245208,1750162243003,-433.49703798,0.00024109,6]
[366245209,1750162243012,-460.0,0.00024109,6]
[366245210,1750162243022,-721.41,0.00024109,6]
[366245211,1750162243031,-460.0,0.00024109,6]
[366245212,1750162243041,-383.08403467,0.00024109,6]
[366245213,1750162243051,-460.0,0.00024109,6]
[366245214,1750162243061,-2037.34,0.00024109,6]
[366245215,1750162243070,-1473.09,0.00024109,6]
[366245216,1750162243080,-460.0,0.00024109,6]
[366245217,1750162243089,-438.77755687,0.00024109,6]
[366245218,1750162243099,-395.99933751,0.00024109,6]
[366245219,1750162243109,-460.0,0.00024109,6]
[366245220,1750162243119,-460.0,0.00024109,6]
[366245221,1750162243129,-151.0,0.00024109,7]
[366245222,1750162243138,-500.91539289,0.00024109,6]
[366245223,1750162243148,-435.49431958,0.00024109,6]
[366245224,1750162243157,-244.6454799,0.00024109,6]
[366245225,1750162243167,-460.0,0.00024109,6]
[366245226,1750162243177,-460.0,0.00024109,6]
[366245227,1750162243187,-460.0,0.00024109,6]
[366245228,1750162243197,-4083.68,0.00024109,6]
[366245229,1750162243207,-774.02,0.00024109,6]
[366245230,1750162243217,-460.0,0.00024109,6]
[366245231,1750162243227,-565.2382,0.00024114,7]
[366245232,1750162243237,-151.0,0.00024121,7]
[366245233,1750162243246,-151.907426,0.00024121,7]
[366245234,1750162243256,-15687.76824582,0.00024136,2]
[366245235,1750162243266,-31570.90832215,0.00024136,2]
[366245236,1750162243276,-151.0,0.00024136,7]
[366245237,1750162243285,-151.274964,0.00024136,7]
[366245238,1750162243294,-369.2439411,0.00024136,6]
[366245239,1750162243304,-151.0,0.00024136,7]
[366245241,1750162243314,-151.0,0.00024136,7]
[366245243,1750162243324,-151.684097,0.00024136,7]
[366245245,1750162243333,-153.872336,0.00024136,7]
[366245247,1750162243344,-431.67285043,0.00024136,6]
[366245249,1750162243353,-151.0,0.00024136,7]
[366245251,1750162243363,-153.896652,0.00024136,7]
[366245252,1750162243373,-460.0,0.00024136,6]
[366245254,1750162243382,-460.0,0.00024136,6]
[366245256,1750162243392,-151.0,0.00024136,7]
[366245258,1750162243401,-460.0,0.00024136,6]
[366245260,1750162243410,-415.5658936,0.00024136,6]
[366245262,1750162243420,-151.0,0.00024136,7]
[366245264,1750162243430,-151.0,0.00024136,7]
[366245266,1750162243439,-460.0,0.00024136,6]
[366245268,1750162243449,-153.681103,0.00024136,7]
[366245270,1750162243458,-460.0,0.00024136,6]
[366245272,1750162243468,-460.0,0.00024136,6]
[366245273,1750162243477,-460.0,0.00024136,6]
[366245275,1750162243486,-344.06333534,0.00024136,6]
[366245277,1750162243495,-385.43860701,0.00024136,6]
[366245279,1750162243505,-460.0,0.00024136,6]
[366245281,1750162243514,-460.0,0.00024136,6]
[366245283,1750162243523,-460.0,0.00024136,6]
[366245285,1750162243533,-151.0,0.00024136,7]
[366245287,1750162243542,-151.0,0.00024136,7]
[366245289,1750162243552,-151.0,0.00024136,7]
[366245291,1750162243562,-460.0,0.00024136,6]
[366245293,1750162243571,-151.0,0.00024136,7]
[366245295,1750162243581,-151.0,0.00024136,7]
[366245297,1750162243591,-260.39746,0.00024136,7]
[366245298,1750162243601,-155.004569,0.00024136,7]
[366245300,1750162243611,-460.0,0.00024136,6]
[366245302,1750162243621,-460.0,0.00024136,6]
[366245304,1750162243631,-377.71449881,0.00024136,6]
[366245305,1750162243641,-442.51222473,0.00024136,6]
[366245306,1750162243652,-460.0,0.00024136,6]
[366245309,1750162243662,-454.67149598,0.00024136,6]
[366245311,1750162243672,-151.0,0.00024136,7]
[366245313,1750162243682,-377.54796966,0.00024136,6]
[366245315,1750162243694,-151.0,0.00024136,7]
[366245317,1750162243704,-408.82078526,0.00024136,6]
[366245319,1750162243715,-391.07326905,0.00024136,6]
[366245320,1750162243726,-460.0,0.00024136,6]
[366245321,1750162243736,-442.72229473,0.00024136,6]
[366245322,1750162243747,-390.66070181,0.00024136,6]
[366245323,1750162243757,-460.0,0.00024136,6]
[366245324,1750162243768,-413.04775293,0.00024136,6]
[366245325,1750162243777,-460.0,0.00024136,6]
[366245326,1750162243792,-460.0,0.00024136,6]
[366245327,1750162243896,-409.3346014,0.00024136,6]
[366245328,1750162243906,-460.0,0.00024136,6]
[366245329,1750162243916,-460.0,0.00024136,6]
[366245330,1750162243926,-200.0,0.00024136,6]
[366245331,1750162243936,-460.0,0.00024136,6]
[366245332,1750162243947,-460.0,0.00024136,6]
[366245333,1750162243958,-460.0,0.00024136,6]
[366245334,1750162243967,-460.0,0.00024136,6]
[366245335,1750162243978,-327.76837562,0.00024136,6]
[366245336,1750162243988,-543.99300489,0.00024136,6]
[366245337,1750162243999,-349.45962495,0.00024136,6]
[366245338,1750162244009,-460.0,0.00024136,6]
[366245339,1750162244019,-151.0,0.00024136,7]
[366245340,1750162244029,-152.996787,0.00024136,7]
[366245341,1750162244039,-460.0,0.00024136,6]
[366245342,1750162244048,-460.0,0.00024136,6]
[366245344,1750162244058,-151.0,0.00024136,7]
[366245345,1750162244068,-151.0,0.00024136,7]
[366245346,1750162244079,-151.0,0.00024136,7]
[366245347,1750162244089,-460.0,0.00024136,6]
[366245348,1750162244103,-460.0,0.00024136,2]
[366245350,1750162244113,-552.22994849,0.00024136,6]
[366245352,1750162244123,-413.02822358,0.00024136,6]
[366245354,1750162244133,-397.70989834,0.00024136,6]
[366245356,1750162244143,-460.0,0.00024136,6]
[366245357,1750162244153,-460.0,0.00024136,6]
[366245359,1750162244162,-460.0,0.00024136,6]
[366245361,1750162244172,-2216.71,0.00024136,2]
[366245363,1750162244182,-460.0,0.00024136,6]
[366245365,1750162244191,-432.02214176,0.00024136,6]
[366245366,1750162244201,-460.0,0.00024136,6]
[366245368,1750162244211,-460.0,0.00024136,6]
[366245369,1750162244221,-460.0,0.00024136,6]
[366245370,1750162244231,-460.0,0.00024136,6]
[366245371,1750162244241,-405.2249719,0.00024136,6]
[366245372,1750162244251,-460.0,0.00024136,6]
[366245373,1750162244261,-460.0,0.00024136,6]
[366245374,1750162244271,-423.92547131,0.00024136,6]
[366245375,1750162244281,-449.90512391,0.00024136,6]
[366245377,1750162244290,-460.0,0.00024136,6]
[366245379,1750162244300,-151.0,0.00024136,7]
[366245380,1750162244310,-460.0,0.00024136,6]
[366245381,1750162244320,-445.05627745,0.00024136,6]
[366245382,1750162244330,-510.4426767,0.00024136,6]
[366245383,1750162244339,-156.949979,0.00024136,7]
[366245384,1750162244349,-221.01477792,0.00024136,6]
[366245385,1750162244359,-460.0,0.00024136,6]
[366245386,1750162244368,-460.0,0.00024136,6]
[366245387,1750162244378,-409.69484639,0.00024136,6]
[366245388,1750162244387,-460.0,0.00024136,6]
[366245389,1750162244396,-460.0,0.00024136,6]
[366245390,1750162244407,-460.0,0.00024136,6]
[366245391,1750162244416,-151.0,0.00024136,7]
[366245392,1750162244425,-151.0,0.00024136,7]
[366245393,1750162244435,-184.84815377,0.00024136,6]
[366245394,1750162244444,-460.0,0.00024136,6]
[366245395,1750162244453,-407.23257233,0.00024136,6]
[366245396,1750162244462,-460.0,0.00024136,6]
[366245397,1750162244471,-389.23220709,0.00024136,6]
[366245398,1750162244480,-282.81045782,0.00024136,6]
[366245399,1750162244489,-460.0,0.00024136,6]
[366245400,1750162244499,-460.0,0.00024136,6]
[366245401,1750162244508,-460.0,0.00024136,6]
[366245402,1750162244517,-460.0,0.00024136,6]
[366245403,1750162244526,-469.93389339,0.00024136,6]
[366245404,1750162244534,-460.0,0.00024136,6]
[366245405,1750162244543,-460.0,0.00024136,6]
[366245406,1750162244552,-460.0,0.00024136,6]
[366245407,1750162244562,-460.0,0.00024136,6]
[366245408,1750162244571,-460.0,0.00024136,6]
[366245409,1750162244580,-460.0,0.00024136,6]
[366245410,1750162244590,-460.0,0.00024136,6]
[366245411,1750162244599,-407.6171417,0.00024136,6]
[366245412,1750162244608,-151.0,0.00024136,7]
[366245413,1750162244617,-151.0,0.00024136,7]
[366245414,1750162244626,-449.4608183,0.00024136,6]
[366245415,1750162244635,-460.0,0.00024136,6]
[366245416,1750162244645,-460.0,0.00024136,6]
[366245417,1750162244654,-460.0,0.00024136,6]
[366245418,1750162244664,-375.20161711,0.00024136,6]
[366245419,1750162244673,-151.66546,0.00024136,7]
[366245420,1750162244683,-151.0,0.00024136,7]
[366245421,1750162244693,-460.0,0.00024136,6]
[366245422,1750162244703,-355.10371188,0.00024136,6]
[366245423,1750162244713,-460.68037538,0.00024136,6]
[366245424,1750162244723,-460.0,0.00024136,6]
[366245425,1750162244732,-460.0,0.00024136,6]
[366245426,1750162244742,-500.0,0.00024136,6]
[366245427,1750162244752,-408.72617854,0.00024136,6]
[366245428,1750162244762,-460.0,0.00024136,6]
[366245429,1750162244772,-1296.25,0.00024136,6]
[366245430,1750162244783,-460.0,0.00024136,6]
[366245431,1750162244794,-460.0,0.00024136,6]
[366245432,1750162244803,-544.08814672,0.00024136,6]
[366245433,1750162244812,-460.0,0.00024136,6]
[366245434,1750162244823,-460.0,0.00024136,6]
[366245435,1750162244833,-588.32,0.00024136,6]
[366245436,1750162244842,-460.0,0.00024136,6]
[366245437,1750162244852,-181.97082479,0.00024136,6]
[366245438,1750162244864,-460.0,0.00024136,6]
[366245439,1750162244875,-151.0,0.00024136,7]
[366245440,1750162244886,-460.0,0.00024136,6]
[366245441,1750162244896,-152.868433,0.00024136,7]
[366245442,1750162244905,-460.0,0.00024136,6]
[366245443,1750162244915,-460.0,0.00024136,6]
[366245444,1750162244925,-460.0,0.00024136,6]
[366245445,1750162244934,-370.7782766,0.00024136,6]
[366245446,1750162244944,-460.0,0.00024136,6]
[366245447,1750162244953,-460.0,0.00024136,6]
[366245448,1750162244963,-460.0,0.00024136,2]
[366245449,1750162244973,-460.0,0.00024136,6]
[366245450,1750162244983,-423.6260986,0.00024136,6]
[366245451,1750162244993,-486.62250665,0.00024136,6]
[366245452,1750162245003,-460.0,0.00024136,6]
[366245453,1750162245013,-354.43661145,0.00024136,6]
[366245454,1750162245022,-417.43501629,0.00024136,6]
[366245455,1750162245031,-460.0,0.00024136,6]
[366245456,1750162245042,-460.0,0.00024136,6]
[366245457,1750162245052,-460.0,0.00024136,6]
[366245458,1750162245062,-460.0,0.00024136,6]
[366245459,1750162245072,-205.84302477,0.00024136,6]
[366245460,1750162245081,-500.0,0.00024136,6]
[366245461,1750162245090,-460.0,0.00024136,6]
[366245462,1750162245100,-450.65786819,0.00024136,6]
[366245463,1750162245109,-460.0,0.00024136,6]
[366245464,1750162245119,-460.0,0.00024136,6]
[366245465,1750162245129,-546.38165515,0.00024136,6]
[366245466,1750162245138,-460.0,0.00024136,6]
[366245467,1750162245148,-549.29,0.00024136,6]
[366245468,1750162245158,-425.75651556,0.00024136,6]
[366245469,1750162245167,-460.0,0.00024136,6]
[366245470,1750162245177,-159.85759439,0.00024136,6]
[366245471,1750162245186,-460.0,0.00024136,6]
[366245472,1750162245280,-460.0,0.00024136,6]
[366245473,1750162245291,-429.99127717,0.00024136,6]
[366245474,1750162245300,-460.0,0.00024136,6]
[366245475,1750162245310,-460.0,0.00024136,6]
[366245476,1750162245320,-460.0,0.00024136,6]
[366245477,1750162245330,-460.0,0.00024136,6]
[366245478,1750162245339,-405.15529847,0.00024136,6]
[366245479,1750162245349,-151.0,0.00024136,7]
[366245480,1750162245358,-151.0,0.00024136,7]
[366245481,1750162245368,-443.58549569,0.00024136,6]
[366245482,1750162245378,-151.0,0.00024136,7]
[366245483,1750162245388,-460.0,0.00024136,6]
[366245484,1750162245397,-460.0,0.00024136,6]
[366245485,1750162245407,-460.0,0.00024136,6]
[366245486,1750162245418,-460.0,0.00024136,6]
[366245487,1750162245427,-390.2930935,0.00024136,6]
[366245488,1750162245437,-410.0,0.00024136,6]
[366245489,1750162245446,-460.0,0.00024136,6]
[366245490,1750162245456,-151.0,0.00024136,7]
[366245491,1750162245465,-460.0,0.00024136,6]
[366245492,1750162245475,-151.0,0.00024136,7]
[366245493,1750162245484,-151.0,0.00024136,7]
[366245494,1750162245493,-158.362726,0.00024136,7]
[366245495,1750162245502,-460.0,0.00024136,6]
[366245496,1750162245512,-460.0,0.00024136,6]
[366245497,1750162245521,-460.0,0.00024136,6]
[366245498,1750162245530,-460.0,0.00024136,6]
[366245499,1750162245539,-460.0,0.00024136,6]
[366245500,1750162245549,-971.94,0.00024136,6]
[366245501,1750162245558,-460.0,0.00024136,6]
[366245502,1750162245568,-460.0,0.00024136,6]
[366245503,1750162245577,-460.0,0.00024136,6]
[366245504,1750162245587,-417.4168751,0.00024136,6]
[366245505,1750162245596,-460.0,0.00024136,6]
[366245506,1750162245605,-460.0,0.00024136,6]
[366245507,1750162245615,-460.0,0.00024136,6]
[366245508,1750162245625,-460.0,0.00024136,6]
[366245509,1750162245635,-421.80615346,0.00024136,6]
[366245510,1750162245644,-460.0,0.00024136,6]
[366245511,1750162245653,-460.0,0.00024136,6]
[366245512,1750162245663,-407.9364116,0.00024136,6]
[366245513,1750162245672,-460.0,0.00024136,6]
[366245514,1750162245683,-460.0,0.00024136,6]
[366245515,1750162245693,-151.0,0.00024136,7]
[366245516,1750162245702,-460.0,0.00024136,6]
[366245517,1750162245712,-460.0,0.00024136,6]
[366245518,1750162245721,-154.827955,0.00024136,7]
[366245519,1750162245732,-460.0,0.00024136,6]
[366245520,1750162245741,-460.0,0.00024136,6]
[366245521,1750162245752,-259.86361584,0.00024136,6]
[366245522,1750162245761,-460.0,0.00024136,6]
[366245523,1750162245771,-460.0,0.00024136,6]
[366245524,1750162245784,-460.0,0.00024136,6]
[366245525,1750162245795,-151.0,0.00024136,7]
[366245526,1750162245805,-228.18172,0.00024136,7]
[366245527,1750162245815,-343.48446535,0.00024136,6]
[366245528,1750162245825,-460.0,0.00024136,6]
[366245529,1750162245835,-2170.27,0.00024136,2]
[366245530,1750162245845,-565.85152362,0.00024136,6]
[366245531,1750162245855,-210.42232648,0.00024136,6]
[366245532,1750162245865,-369.67707577,0.00024136,6]
[366245533,1750162245875,-151.0,0.00024136,2]
[366245534,1750162245885,-151.0,0.00024136,2]
[366245535,1750162245894,-151.0,0.00024136,2]
[366245536,1750162245904,-879.44,0.00024136,6]
[366245537,1750162245914,-460.0,0.00024136,6]
[366245538,1750162245924,-151.0,0.00024136,7]
[366245539,1750162245933,-151.0,0.00024136,7]
[366245540,1750162245943,-151.0,0.00024136,7]
[366245541,1750162245953,-346.8919201,0.00024136,6]
[366245542,1750162245963,-399.95365614,0.00024136,6]
[366245543,1750162245972,-460.0,0.00024136,6]
[366245544,1750162245982,-460.0,0.00024136,6]
[366245545,1750162245991,-460.0,0.00024136,6]
[366245546,1750162246001,-460.0,0.00024136,6]
[366245547,1750162246011,-415.0891305,0.00024136,6]
[366245548,1750162246020,-350.17249817,0.00024136,6]
[366245549,1750162246030,-417.61854939,0.00024136,6]
[366245550,1750162246040,-410.11393869,0.00024136,6]
[366245551,1750162246049,-407.44446503,0.00024136,6]
[366245552,1750162246059,-364.6399847,0.00024136,6]
[366245553,1750162246069,-351.73125902,0.00024136,6]
[366245554,1750162246078,-460.0,0.00024136,6]
[366245555,1750162246088,-440.0,0.00024136,6]
[366245556,1750162246098,-460.0,0.00024136,6]
[366245557,1750162246107,-460.0,0.00024136,6]
[366245558,1750162246117,-460.0,0.00024136,6]
[366245559,1750162246127,-460.0,0.00024136,6]
[366245560,1750162246136,-460.0,0.00024136,6]
[366245561,1750162246146,-460.0,0.00024136,6]
[366245562,1750162246155,-181.28145799,0.00024136,6]
[366245563,1750162246165,-151.0,0.00024136,7]
[366245565,1750162246174,-460.0,0.00024136,6]
[366245567,1750162246184,-152.46553,0.00024136,7]
[366245568,1750162246193,-460.0,0.00024136,6]
[366245569,1750162246203,-958.56,0.00024136,6]
[366245570,1750162246213,-361.73778576,0.00024136,6]
[366245572,1750162246222,-460.0,0.00024136,6]
[366245573,1750162246232,-460.0,0.00024136,6]
[366245574,1750162246242,-460.0,0.00024136,6]
[366245575,1750162246252,-987.6,0.00024136,6]
[366245576,1750162246262,-195.83104979,0.00024136,6]
[366245577,1750162246271,-460.0,0.00024136,6]
[366245579,1750162246281,-460.0,0.00024136,6]
[366245580,1750162246290,-460.0,0.00024136,6]
[366245581,1750162246301,-999.21,0.00024136,6]
[366245582,1750162246310,-460.0,0.00024136,6]
[366245583,1750162246320,-364.71194699,0.00024136,6]
[366245584,1750162246329,-460.0,0.00024136,6]
[366245585,1750162246339,-460.0,0.00024136,6]
[366245586,1750162246348,-352.24875754,0.00024136,6]
[366245587,1750162246358,-460.0,0.00024136,6]
[366245588,1750162246367,-846.13,0.00024136,6]
[366245589,1750162246378,-460.0,0.00024136,6]
[366245590,1750162246387,-460.0,0.00024136,6]
[366245591,1750162246397,-384.7611609,0.00024136,6]
[366245592,1750162246407,-460.0,0.00024136,6]
[366245593,1750162246416,-460.0,0.00024136,6]
[366245594,1750162246426,-460.0,0.00024136,6]
[366245595,1750162246436,-460.0,0.00024136,6]
[366245596,1750162246446,-460.0,0.00024136,6]
[366245597,1750162246456,-372.87303034,0.00024136,6]
[366245598,1750162246466,-1737.74,0.00024136,6]
[366245599,1750162246560,-1057.55,0.00024136,6]
[366245600,1750162246571,-1072.23,0.00024136,6]
[366245601,1750162246581,-580.84,0.00024136,6]
[366245602,1750162246591,-460.0,0.00024136,6]
[366245603,1750162246600,-460.0,0.00024136,6]
[366245604,1750162246610,-460.0,0.00024136,6]
[366245605,1750162246619,-460.0,0.00024136,6]
[366245606,1750162246631,-460.0,0.00024136,6]
[366245607,1750162246641,-460.0,0.00024136,6]
[366245608,1750162246653,-5506.08,0.00024136,6]
[366245609,1750162246662,-460.0,0.00024136,6]
[366245610,1750162246671,-4722.03,0.00024136,6]
[366245611,1750162246681,-460.0,0.00024136,6]
[366245612,1750162246691,-460.0,0.00024136,6]
[366245613,1750162246701,-402.18481656,0.00024136,6]
[366245614,1750162246710,-820.61,0.00024136,6]
[366245615,1750162246720,-460.0,0.00024136,6]
[366245616,1750162246730,-400.0,0.00024136,6]
[366245617,1750162246739,-460.0,0.00024136,6]
[366245618,1750162246749,-460.0,0.00024136,6]
[366245619,1750162246759,-1189.99,0.00024136,6]
[366245620,1750162246769,-5597.0,0.00024136,6]
[366245621,1750162246779,-460.0,0.00024136,6]
[366245622,1750162246791,-460.0,0.00024136,6]
[366245623,1750162246801,-1531.91,0.00024136,6]
[366245624,1750162246811,-460.0,0.00024136,6]
[366245625,1750162246820,-460.0,0.00024136,6]
[366245626,1750162246831,-647.26,0.00024136,6]
[366245627,1750162246840,-5645.53,0.00024136,6]
[366245628,1750162246850,-460.0,0.00024136,6]
[366245629,1750162246860,-350.0,0.00024136,6]
[366245630,1750162246871,-1363.12,0.00024136,6]
[366245631,1750162246882,-349.40442483,0.00024136,6]
[366245632,1750162246891,-460.0,0.00024136,6]
[366245633,1750162246901,-460.0,0.00024136,6]
[366245634,1750162246911,-460.0,0.00024136,6]
[366245635,1750162246920,-460.0,0.00024136,6]
[366245636,1750162246930,-7064.38,0.00024136,6]
[366245637,1750162246939,-561.26,0.00024136,6]
[366245638,1750162246949,-460.0,0.00024136,6]